[Event "Titled Tuesday Blitz June 27 Early 2023"]
[White "Sjugirov, Sanan"]
[Black "Kilic, Eray"]
[WhiteFideId "4189302"]
[BlackFideId "44517173"]
[WhiteElo "2970"]
[BlackElo "2773"]
[Result "0-1"]
[Round "6"]
[TimeControl "180+2"]
[Date "2023.06.27"]
[WhiteClock "0:00:01"]
[BlackClock "0:00:23"]
[Board "17"]

1. d4 {[%clk 0:03:00]}  Nf6 {[%clk 0:03:00]} 2. c4 {[%clk 0:03:01]}  g6 {[%clk 0:03:00]} 3. Nc3 {[%clk 0:03:01]}  d5 {[%clk 0:03:00]} 4. cxd5 {[%clk 0:03:01]}  Nxd5 {[%clk 0:03:01]} 5. e4 {[%clk 0:03:02]}  Nxc3 {[%clk 0:03:01]} 6. bxc3 {[%clk 0:03:03]}  Bg7 {[%clk 0:03:02]} 7. Bc4 {[%clk 0:03:03]}  c5 {[%clk 0:03:01]} 8. Ne2 {[%clk 0:03:04]}  O-O {[%clk 0:03:01]} 9. O-O {[%clk 0:03:04]}  Nc6 {[%clk 0:03:01]} 10. Be3 {[%clk 0:03:04]}  b6 {[%clk 0:03:02]} 11. Rc1 {[%clk 0:03:04]}  Bb7 {[%clk 0:02:58]} 12. Bb5 {[%clk 0:03:03]}  cxd4 {[%clk 0:02:55]} 13. cxd4 {[%clk 0:03:03]}  Rc8 {[%clk 0:02:55]} 14. Qd2 {[%clk 0:03:02]}  a6 {[%clk 0:02:53]} 15. Bd3 {[%clk 0:02:59]}  b5 {[%clk 0:02:51]} 16. e5 {[%clk 0:02:30]}  Qa5 {[%clk 0:02:24]} 17. Qb2 {[%clk 0:02:11]}  Nb4 {[%clk 0:02:19]} 18. Bb1 {[%clk 0:02:09]}  Nd5 {[%clk 0:02:16]} 19. Nf4 {[%clk 0:01:53]}  Nxf4 {[%clk 0:02:04]} 20. Bxf4 {[%clk 0:01:54]}  Bd5 {[%clk 0:02:03]} 21. Bg5 {[%clk 0:01:50]}  e6 {[%clk 0:02:03]} 22. a3 {[%clk 0:01:27]}  Rfe8 {[%clk 0:01:47]} 23. Bd2 {[%clk 0:01:18]}  Qb6 {[%clk 0:01:46]} 24. Bb4 {[%clk 0:01:18]}  Bf8 {[%clk 0:01:46]} 25. Qd2 {[%clk 0:01:01]}  Bxb4 {[%clk 0:01:38]} 26. axb4 {[%clk 0:01:01]}  Bc4 {[%clk 0:01:37]} 27. Rfd1 {[%clk 0:00:58]}  Red8 {[%clk 0:01:35]} 28. h4 {[%clk 0:00:53]}  Rd7 {[%clk 0:01:20]} 29. h5 {[%clk 0:00:23]}  Rcd8 {[%clk 0:01:19]} 30. Qg5 {[%clk 0:00:15]}  Rxd4 {[%clk 0:01:11]} 31. Re1 {[%clk 0:00:08]}  Rd2 {[%clk 0:01:04]} 32. Re3 {[%clk 0:00:07]}  Rd1+ {[%clk 0:01:00]} 33. Re1 {[%clk 0:00:07]}  Rxc1 {[%clk 0:00:43]} 34. Rxc1 {[%clk 0:00:08]}  Rd4 {[%clk 0:00:29]} 35. Qe3 {[%clk 0:00:02]}  Qd8 {[%clk 0:00:28]} 36. Re1 {[%clk 0:00:03]}  Rd1 {[%clk 0:00:26]} 37. h6 {[%clk 0:00:03]}  Rxe1+ {[%clk 0:00:26]} 38. Qxe1 {[%clk 0:00:04]}  Qg5 {[%clk 0:00:25]} 39. Qd1 {[%clk 0:00:01]}  Bd5 {[%clk 0:00:24]} 40. Qc2 {[%clk 0:00:01]}  Qxg2# {[%clk 0:00:23]} 0-1


[Site "https://www.chess.com"]

[Event "Titled Tuesday Blitz June 27 Early 2023"]
[White "Morefield, Jason"]
[Black "Movahed, Sina"]
[WhiteFideId "30920825"]
[BlackFideId "42520835"]
[WhiteElo "2749"]
[BlackElo "2937"]
[Result "1-0"]
[Round "6"]
[TimeControl "180+2"]
[Date "2023.06.27"]
[WhiteClock "0:00:06"]
[BlackClock "0:00:05"]
[Board "22"]

1. e4 {[%clk 0:03:00]}  c5 {[%clk 0:02:59]} 2. Nf3 {[%clk 0:03:01]}  d6 {[%clk 0:02:59]} 3. d4 {[%clk 0:03:01]}  cxd4 {[%clk 0:03:00]} 4. Nxd4 {[%clk 0:03:01]}  Nf6 {[%clk 0:03:01]} 5. Nc3 {[%clk 0:03:02]}  a6 {[%clk 0:03:01]} 6. Be2 {[%clk 0:03:03]}  e5 {[%clk 0:02:56]} 7. Nb3 {[%clk 0:03:03]}  Be6 {[%clk 0:02:56]} 8. f4 {[%clk 0:02:59]}  exf4 {[%clk 0:02:46]} 9. Bxf4 {[%clk 0:02:58]}  Nc6 {[%clk 0:02:46]} 10. O-O {[%clk 0:02:49]}  Be7 {[%clk 0:02:46]} 11. Qd2 {[%clk 0:02:48]}  O-O {[%clk 0:02:45]} 12. Rad1 {[%clk 0:02:48]}  b5 {[%clk 0:02:41]} 13. a3 {[%clk 0:02:13]}  Qb6+ {[%clk 0:02:38]} 14. Be3 {[%clk 0:02:09]}  Qc7 {[%clk 0:02:35]} 15. Nd5 {[%clk 0:02:05]}  Bxd5 {[%clk 0:02:34]} 16. exd5 {[%clk 0:02:05]}  Ne5 {[%clk 0:02:34]} 17. Nd4 {[%clk 0:01:55]}  Nxd5 {[%clk 0:02:18]} 18. Nxb5 {[%clk 0:01:54]}  axb5 {[%clk 0:02:19]} 19. Qxd5 {[%clk 0:01:54]}  Qxc2 {[%clk 0:02:19]} 20. Rd2 {[%clk 0:01:50]}  Qg6 {[%clk 0:02:15]} 21. Bxb5 {[%clk 0:01:40]}  Bg5 {[%clk 0:02:15]} 22. Bxg5 {[%clk 0:01:30]}  Qxg5 {[%clk 0:02:16]} 23. a4 {[%clk 0:01:22]}  Rac8 {[%clk 0:02:01]} 24. b4 {[%clk 0:01:04]}  Qe3+ {[%clk 0:01:29]} 25. Kh1 {[%clk 0:00:58]}  h5 {[%clk 0:01:22]} 26. h3 {[%clk 0:00:53]}  h4 {[%clk 0:01:10]} 27. Re2 {[%clk 0:00:51]}  Qh6 {[%clk 0:01:05]} 28. a5 {[%clk 0:00:42]}  Kh8 {[%clk 0:00:57]} 29. a6 {[%clk 0:00:40]}  f5 {[%clk 0:00:57]} 30. Ref2 {[%clk 0:00:37]}  f4 {[%clk 0:00:56]} 31. Be2 {[%clk 0:00:35]}  Rc3 {[%clk 0:00:31]} 32. b5 {[%clk 0:00:25]}  Ra3 {[%clk 0:00:22]} 33. Qe4 {[%clk 0:00:21]}  f3 {[%clk 0:00:18]} 34. Bxf3 {[%clk 0:00:20]}  Qg5 {[%clk 0:00:14]} 35. Qd5 {[%clk 0:00:11]}  Qg3 {[%clk 0:00:11]} 36. Qxd6 {[%clk 0:00:10]}  Raxf3 {[%clk 0:00:10]} 37. Qxf8+ {[%clk 0:00:05]}  Rxf8 {[%clk 0:00:08]} 38. Rxf8+ {[%clk 0:00:06]}  Kh7 {[%clk 0:00:08]} 39. a7 {[%clk 0:00:06]}  Ng4 {[%clk 0:00:07]} 40. hxg4 {[%clk 0:00:06]}  h3 {[%clk 0:00:05]} 41. a8=Q {[%clk 0:00:06]} 1-0


[Site "https://www.chess.com"]

[Event "Titled Tuesday Blitz June 27 Early 2023"]
[White "Antipov, Mikhail Al."]
[Black "Lorparizangeneh, Shahin"]
[WhiteFideId "4107012"]
[BlackFideId "12521604"]
[WhiteElo "2915"]
[BlackElo "2747"]
[Result "1-0"]
[Round "6"]
[TimeControl "180+2"]
[Date "2023.06.27"]
[WhiteClock "0:01:11"]
[BlackClock "0:00:00"]
[Board "23"]

1. e4 {[%clk 0:03:00]}  e5 {[%clk 0:02:59]} 2. Nf3 {[%clk 0:03:01]}  Nc6 {[%clk 0:03:00]} 3. Nc3 {[%clk 0:03:01]}  Nf6 {[%clk 0:03:00]} 4. Bb5 {[%clk 0:03:01]}  Bc5 {[%clk 0:02:58]} 5. Nxe5 {[%clk 0:02:59]}  Nxe5 {[%clk 0:02:59]} 6. d4 {[%clk 0:03:00]}  Bd6 {[%clk 0:02:58]} 7. dxe5 {[%clk 0:02:57]}  Bxe5 {[%clk 0:02:58]} 8. Bd3 {[%clk 0:02:58]}  O-O {[%clk 0:02:55]} 9. O-O {[%clk 0:02:52]}  Re8 {[%clk 0:02:55]} 10. Nb5 {[%clk 0:02:18]}  c6 {[%clk 0:02:28]} 11. f4 {[%clk 0:02:17]}  Bb8 {[%clk 0:02:14]} 12. Nc3 {[%clk 0:02:14]}  d6 {[%clk 0:02:07]} 13. Qf3 {[%clk 0:02:10]}  b5 {[%clk 0:02:01]} 14. h3 {[%clk 0:02:09]}  a5 {[%clk 0:01:29]} 15. Kh1 {[%clk 0:01:54]}  b4 {[%clk 0:01:23]} 16. Ne2 {[%clk 0:01:54]}  Ba6 {[%clk 0:01:22]} 17. Ng3 {[%clk 0:01:46]}  Nd7 {[%clk 0:01:03]} 18. b3 {[%clk 0:01:42]}  Nc5 {[%clk 0:00:58]} 19. Bb2 {[%clk 0:01:39]}  Nxd3 {[%clk 0:00:50]} 20. cxd3 {[%clk 0:01:40]}  f6 {[%clk 0:00:46]} 21. Nh5 {[%clk 0:01:36]}  Qe7 {[%clk 0:00:40]} 22. Qg4 {[%clk 0:01:31]}  Kh8 {[%clk 0:00:38]} 23. Rf3 {[%clk 0:01:30]}  Bc8 {[%clk 0:00:34]} 24. Qh4 {[%clk 0:01:23]}  Rf8 {[%clk 0:00:11]} 25. Rg3 {[%clk 0:01:21]}  Rf7 {[%clk 0:00:05]} 26. Nxg7 {[%clk 0:01:12]}  Ra7 {[%clk 0:00:01]} 27. Nh5 {[%clk 0:01:12]}  Rf8 {[%clk 0:00:00]} 28. Nxf6 {[%clk 0:01:11]} 1-0


[Site "https://www.chess.com"]

[Event "Titled Tuesday Blitz June 27 Early 2023"]
[White "Ibarra Jerez, Jose Carlos"]
[Black "Tanenbaum, Zachary"]
[WhiteFideId "2226332"]
[BlackFideId "2060850"]
[WhiteElo "2885"]
[BlackElo "2746"]
[Result "1-0"]
[Round "6"]
[TimeControl "180+2"]
[Date "2023.06.27"]
[WhiteClock "0:01:11"]
[BlackClock "0:00:01"]
[Board "25"]

1. e4 {[%clk 0:03:00]}  e5 {[%clk 0:02:59]} 2. Nf3 {[%clk 0:03:01]}  Nc6 {[%clk 0:03:00]} 3. Nc3 {[%clk 0:03:00]}  Nf6 {[%clk 0:02:59]} 4. h3 {[%clk 0:03:01]}  d5 {[%clk 0:02:59]} 5. exd5 {[%clk 0:03:01]}  Nxd5 {[%clk 0:03:00]} 6. Bb5 {[%clk 0:03:01]}  Nxc3 {[%clk 0:03:00]} 7. bxc3 {[%clk 0:03:02]}  Bd6 {[%clk 0:03:00]} 8. O-O {[%clk 0:03:02]}  O-O {[%clk 0:03:00]} 9. d4 {[%clk 0:03:03]}  exd4 {[%clk 0:03:00]} 10. cxd4 {[%clk 0:03:04]}  Qf6 {[%clk 0:03:00]} 11. Bb2 {[%clk 0:03:01]}  Bf5 {[%clk 0:02:41]} 12. c4 {[%clk 0:02:59]}  Nb4 {[%clk 0:02:06]} 13. Qb3 {[%clk 0:02:36]}  c6 {[%clk 0:01:53]} 14. c5 {[%clk 0:02:13]}  cxb5 {[%clk 0:01:43]} 15. Qxb4 {[%clk 0:02:11]}  Bc7 {[%clk 0:01:35]} 16. d5 {[%clk 0:02:10]}  Qg6 {[%clk 0:01:13]} 17. Nh4 {[%clk 0:02:07]}  Qg5 {[%clk 0:01:13]} 18. d6 {[%clk 0:01:54]}  a5 {[%clk 0:01:06]} 19. Qd4 {[%clk 0:01:52]}  Bd8 {[%clk 0:01:04]} 20. Nxf5 {[%clk 0:01:48]}  Bf6 {[%clk 0:01:02]} 21. Ne7+ {[%clk 0:01:48]}  Kh8 {[%clk 0:01:01]} 22. Qd5 {[%clk 0:01:33]}  Qxd5 {[%clk 0:00:59]} 23. Nxd5 {[%clk 0:01:34]}  Bxb2 {[%clk 0:01:00]} 24. Rab1 {[%clk 0:01:35]}  Ba3 {[%clk 0:00:50]} 25. Rxb5 {[%clk 0:01:35]}  Rac8 {[%clk 0:00:45]} 26. Nb6 {[%clk 0:01:18]}  Rc6 {[%clk 0:00:22]} 27. Nc4 {[%clk 0:01:16]}  Bxc5 {[%clk 0:00:11]} 28. Ne5 {[%clk 0:01:16]}  Bxd6 {[%clk 0:00:05]} 29. Nxc6 {[%clk 0:01:15]}  bxc6 {[%clk 0:00:06]} 30. Rxa5 {[%clk 0:01:16]}  g6 {[%clk 0:00:05]} 31. Ra6 {[%clk 0:01:16]}  Rc8 {[%clk 0:00:05]} 32. Rc1 {[%clk 0:01:16]}  Bf4 {[%clk 0:00:05]} 33. Raxc6 {[%clk 0:01:13]}  Ra8 {[%clk 0:00:05]} 34. Rc8+ {[%clk 0:01:12]}  Rxc8 {[%clk 0:00:04]} 35. Rxc8+ {[%clk 0:01:13]}  Kg7 {[%clk 0:00:05]} 36. a4 {[%clk 0:01:12]}  Bd2 {[%clk 0:00:04]} 37. Rd8 {[%clk 0:01:11]}  Bb4 {[%clk 0:00:01]} 38. Rd5 {[%clk 0:01:11]} 1-0


[Site "https://www.chess.com"]

[Event "Titled Tuesday Blitz June 27 Early 2023"]
[White "Erdogmus, Yagiz Kaan"]
[Black "Kjartansson, David"]
[WhiteFideId "44599790"]
[BlackFideId "2301130"]
[WhiteElo "2853"]
[BlackElo "2675"]
[Result "1-0"]
[Round "6"]
[TimeControl "180+2"]
[Date "2023.06.27"]
[WhiteClock "0:00:20"]
[BlackClock "0:00:56"]
[Board "30"]

1. e4 {[%clk 0:03:00]}  d6 {[%clk 0:02:57]} 2. d4 {[%clk 0:03:00]}  Nf6 {[%clk 0:02:57]} 3. Nc3 {[%clk 0:03:01]}  e5 {[%clk 0:02:53]} 4. Nf3 {[%clk 0:02:58]}  Nbd7 {[%clk 0:02:52]} 5. Bc4 {[%clk 0:02:58]}  Be7 {[%clk 0:02:52]} 6. O-O {[%clk 0:02:55]}  c6 {[%clk 0:02:53]} 7. a4 {[%clk 0:02:54]}  Qc7 {[%clk 0:02:53]} 8. h3 {[%clk 0:02:52]}  h6 {[%clk 0:02:54]} 9. Re1 {[%clk 0:02:51]}  Nf8 {[%clk 0:02:54]} 10. a5 {[%clk 0:02:47]}  g5 {[%clk 0:02:53]} 11. dxe5 {[%clk 0:02:46]}  dxe5 {[%clk 0:02:53]} 12. Nh2 {[%clk 0:02:33]}  Ng6 {[%clk 0:02:40]} 13. Ng4 {[%clk 0:02:21]}  Nxg4 {[%clk 0:02:35]} 14. hxg4 {[%clk 0:02:22]}  Bb4 {[%clk 0:02:35]} 15. Qf3 {[%clk 0:02:18]}  Nf4 {[%clk 0:02:15]} 16. g3 {[%clk 0:02:13]}  Ne6 {[%clk 0:02:10]} 17. Bd2 {[%clk 0:02:00]}  Be7 {[%clk 0:01:59]} 18. Nd1 {[%clk 0:01:45]}  Rh7 {[%clk 0:01:47]} 19. Ne3 {[%clk 0:01:36]}  Nd4 {[%clk 0:01:42]} 20. Qd1 {[%clk 0:01:34]}  Be6 {[%clk 0:01:41]} 21. c3 {[%clk 0:01:33]}  Bxc4 {[%clk 0:01:37]} 22. cxd4 {[%clk 0:01:28]}  Bb5 {[%clk 0:01:31]} 23. d5 {[%clk 0:01:11]}  O-O-O {[%clk 0:01:27]} 24. Nf5 {[%clk 0:01:06]}  Bf8 {[%clk 0:01:22]} 25. a6 {[%clk 0:00:59]}  bxa6 {[%clk 0:01:15]} 26. Ba5 {[%clk 0:00:57]}  Qd7 {[%clk 0:01:11]} 27. Bxd8 {[%clk 0:00:41]}  Qxd8 {[%clk 0:01:11]} 28. dxc6 {[%clk 0:00:39]}  Qxd1 {[%clk 0:01:10]} 29. Rexd1 {[%clk 0:00:40]}  f6 {[%clk 0:01:06]} 30. Nd6+ {[%clk 0:00:37]}  Bxd6 {[%clk 0:01:05]} 31. Rxd6 {[%clk 0:00:38]}  Rf7 {[%clk 0:01:05]} 32. Rad1 {[%clk 0:00:33]}  Kc7 {[%clk 0:01:05]} 33. Rd7+ {[%clk 0:00:33]}  Rxd7 {[%clk 0:01:05]} 34. Rxd7+ {[%clk 0:00:34]}  Kxc6 {[%clk 0:01:05]} 35. Rf7 {[%clk 0:00:34]}  Kc5 {[%clk 0:01:04]} 36. Rxf6 {[%clk 0:00:34]}  Kd4 {[%clk 0:01:05]} 37. Rxh6 {[%clk 0:00:31]}  Kxe4 {[%clk 0:01:05]} 38. Rg6 {[%clk 0:00:31]}  Be2 {[%clk 0:01:00]} 39. Rxg5 {[%clk 0:00:31]}  a5 {[%clk 0:01:00]} 40. Rg7 {[%clk 0:00:31]}  a6 {[%clk 0:01:01]} 41. g5 {[%clk 0:00:31]}  Kf5 {[%clk 0:01:00]} 42. g6 {[%clk 0:00:28]}  Kf6 {[%clk 0:00:59]} 43. Rc7 {[%clk 0:00:24]}  Kxg6 {[%clk 0:00:58]} 44. Rc5 {[%clk 0:00:24]}  Kf5 {[%clk 0:00:57]} 45. f4 {[%clk 0:00:23]}  Kg4 {[%clk 0:00:56]} 46. Rxe5 {[%clk 0:00:22]}  Bb5 {[%clk 0:00:56]} 47. Kg2 {[%clk 0:00:19]}  Bc6+ {[%clk 0:00:56]} 48. Kf2 {[%clk 0:00:20]}  Bb5 {[%clk 0:00:56]} 49. Rg5+ {[%clk 0:00:20]}  Kh3 {[%clk 0:00:56]} 50. f5 {[%clk 0:00:20]}  a4 {[%clk 0:00:57]} 51. f6 {[%clk 0:00:21]}  Bc4 {[%clk 0:00:57]} 52. Rh5+ {[%clk 0:00:19]}  Kg4 {[%clk 0:00:56]} 53. Rh4+ {[%clk 0:00:20]} 1-0


[Site "https://www.chess.com"]

[Event "Titled Tuesday Blitz June 27 Early 2023"]
[White "Manukyan, Sargis A."]
[Black "Mardov, Dimitar"]
[WhiteFideId "13303970"]
[BlackFideId "30919495"]
[WhiteElo "2672"]
[BlackElo "2850"]
[Result "0-1"]
[Round "6"]
[TimeControl "180+2"]
[Date "2023.06.27"]
[WhiteClock "0:00:11"]
[BlackClock "0:00:10"]
[Board "31"]

1. d4 {[%clk 0:03:00]}  Nf6 {[%clk 0:02:59]} 2. c4 {[%clk 0:03:01]}  e6 {[%clk 0:03:00]} 3. Nc3 {[%clk 0:03:01]}  d5 {[%clk 0:02:59]} 4. Bg5 {[%clk 0:03:00]}  Be7 {[%clk 0:02:59]} 5. cxd5 {[%clk 0:02:59]}  exd5 {[%clk 0:02:58]} 6. e3 {[%clk 0:02:59]}  c6 {[%clk 0:02:57]} 7. Bd3 {[%clk 0:02:59]}  Nbd7 {[%clk 0:02:58]} 8. Nf3 {[%clk 0:02:59]}  Nf8 {[%clk 0:02:58]} 9. Qc2 {[%clk 0:02:59]}  Ne6 {[%clk 0:02:56]} 10. Bh4 {[%clk 0:02:53]}  g6 {[%clk 0:02:53]} 11. O-O {[%clk 0:02:52]}  O-O {[%clk 0:02:53]} 12. Rab1 {[%clk 0:02:52]}  a5 {[%clk 0:02:53]} 13. a3 {[%clk 0:02:52]}  b5 {[%clk 0:02:51]} 14. Ne2 {[%clk 0:02:49]}  Bd7 {[%clk 0:02:50]} 15. Ne5 {[%clk 0:02:49]}  Rc8 {[%clk 0:02:47]} 16. Rfc1 {[%clk 0:02:35]}  Be8 {[%clk 0:02:33]} 17. h3 {[%clk 0:02:25]}  Rc7 {[%clk 0:02:12]} 18. b4 {[%clk 0:02:22]}  axb4 {[%clk 0:02:11]} 19. axb4 {[%clk 0:02:23]}  Nh5 {[%clk 0:01:33]} 20. Bxe7 {[%clk 0:02:18]}  Qxe7 {[%clk 0:01:34]} 21. f4 {[%clk 0:02:11]}  f6 {[%clk 0:01:20]} 22. Nf3 {[%clk 0:02:05]}  Nd8 {[%clk 0:01:10]} 23. Qd2 {[%clk 0:02:04]}  Ng7 {[%clk 0:01:07]} 24. g4 {[%clk 0:01:58]}  Qd6 {[%clk 0:01:03]} 25. g5 {[%clk 0:01:56]}  Re7 {[%clk 0:00:59]} 26. gxf6 {[%clk 0:01:55]}  Qxf6 {[%clk 0:01:00]} 27. Ne5 {[%clk 0:01:54]}  Qh4 {[%clk 0:00:55]} 28. Kg2 {[%clk 0:01:48]}  Bd7 {[%clk 0:00:46]} 29. Ng1 {[%clk 0:01:47]}  Nf7 {[%clk 0:00:40]} 30. Nxd7 {[%clk 0:01:24]}  Rxd7 {[%clk 0:00:40]} 31. Rxc6 {[%clk 0:01:22]}  Nh5 {[%clk 0:00:38]} 32. Qf2 {[%clk 0:01:21]}  Qe7 {[%clk 0:00:36]} 33. Nf3 {[%clk 0:01:19]}  Nd6 {[%clk 0:00:33]} 34. Ne5 {[%clk 0:01:17]}  Ra7 {[%clk 0:00:30]} 35. Rbc1 {[%clk 0:01:17]}  Nc4 {[%clk 0:00:27]} 36. Bxc4 {[%clk 0:01:09]}  bxc4 {[%clk 0:00:25]} 37. Rc5 {[%clk 0:01:02]}  Qe6 {[%clk 0:00:22]} 38. Rc2 {[%clk 0:01:01]}  Ra3 {[%clk 0:00:20]} 39. Qf3 {[%clk 0:01:00]}  Nxf4+ {[%clk 0:00:20]} 40. Kh2 {[%clk 0:00:50]}  Nd3 {[%clk 0:00:20]} 41. Qxd5 {[%clk 0:00:34]}  Nxc5 {[%clk 0:00:20]} 42. Qxc5 {[%clk 0:00:31]}  Rxe3 {[%clk 0:00:20]} 43. Qxc4 {[%clk 0:00:19]}  Rxh3+ {[%clk 0:00:14]} 44. Kg2 {[%clk 0:00:19]}  Qxc4 {[%clk 0:00:15]} 45. Rxc4 {[%clk 0:00:19]}  Rb3 {[%clk 0:00:15]} 46. d5 {[%clk 0:00:19]}  Rd8 {[%clk 0:00:11]} 47. Rd4 {[%clk 0:00:19]}  Kf8 {[%clk 0:00:07]} 48. d6 {[%clk 0:00:20]}  Rb2+ {[%clk 0:00:06]} 49. Kf3 {[%clk 0:00:20]}  Rc2 {[%clk 0:00:05]} 50. d7 {[%clk 0:00:20]}  Ke7 {[%clk 0:00:05]} 51. b5 {[%clk 0:00:20]}  Ke6 {[%clk 0:00:05]} 52. Kf4 {[%clk 0:00:08]}  g5+ {[%clk 0:00:04]} 53. Ke4 {[%clk 0:00:03]}  Re2+ {[%clk 0:00:04]} 54. Kd3 {[%clk 0:00:03]}  Rxe5 {[%clk 0:00:05]} 55. b6 {[%clk 0:00:04]}  Rb5 {[%clk 0:00:05]} 56. Re4+ {[%clk 0:00:04]}  Kxd7 {[%clk 0:00:05]} 57. Kc4 {[%clk 0:00:05]}  Rxb6 {[%clk 0:00:05]} 58. Re5 {[%clk 0:00:05]}  Rd6 {[%clk 0:00:06]} 59. Kc5 {[%clk 0:00:06]}  Rc8+ {[%clk 0:00:06]} 60. Kb5 {[%clk 0:00:06]}  Rg6 {[%clk 0:00:06]} 61. Rd5+ {[%clk 0:00:06]}  Ke7 {[%clk 0:00:07]} 62. Rf5 {[%clk 0:00:07]}  Rf8 {[%clk 0:00:07]} 63. Re5+ {[%clk 0:00:07]}  Kf7 {[%clk 0:00:08]} 64. Kc5 {[%clk 0:00:07]}  Kg7 {[%clk 0:00:08]} 65. Kd4 {[%clk 0:00:08]}  Rf7 {[%clk 0:00:09]} 66. Ke4 {[%clk 0:00:08]}  g4 {[%clk 0:00:10]} 67. Ke3 {[%clk 0:00:09]}  g3 {[%clk 0:00:11]} 68. Ke2 {[%clk 0:00:10]}  g2 {[%clk 0:00:12]} 69. Re3 {[%clk 0:00:10]}  g1=Q {[%clk 0:00:12]} 70. Kd3 {[%clk 0:00:11]}  Qd1+ {[%clk 0:00:10]} 71. Ke4 {[%clk 0:00:11]}  Re6# {[%clk 0:00:10]} 0-1


[Site "https://www.chess.com"]

[Event "Titled Tuesday Blitz June 27 Early 2023"]
[White "Vlassov, Nikolai"]
[Black "Beerdsen, Thomas"]
[WhiteFideId "4103360"]
[BlackFideId "1030108"]
[WhiteElo "2612"]
[BlackElo "2827"]
[Result "1-0"]
[Round "6"]
[TimeControl "180+2"]
[Date "2023.06.27"]
[WhiteClock "0:00:05"]
[BlackClock "0:00:17"]
[Board "34"]

1. e4 {[%clk 0:03:00]}  e5 {[%clk 0:02:55]} 2. Bc4 {[%clk 0:03:00]}  Nf6 {[%clk 0:02:55]} 3. d3 {[%clk 0:03:00]}  c6 {[%clk 0:02:55]} 4. Nf3 {[%clk 0:03:00]}  d5 {[%clk 0:02:55]} 5. Bb3 {[%clk 0:03:01]}  Bb4+ {[%clk 0:02:55]} 6. c3 {[%clk 0:03:00]}  Bd6 {[%clk 0:02:56]} 7. Bg5 {[%clk 0:03:00]}  Be6 {[%clk 0:02:53]} 8. d4 {[%clk 0:03:00]}  dxe4 {[%clk 0:02:47]} 9. Nxe5 {[%clk 0:02:58]}  Bxe5 {[%clk 0:02:42]} 10. dxe5 {[%clk 0:02:58]}  Qxd1+ {[%clk 0:02:42]} 11. Bxd1 {[%clk 0:02:52]}  Nfd7 {[%clk 0:02:39]} 12. Bf4 {[%clk 0:02:46]}  Nc5 {[%clk 0:02:36]} 13. Bc2 {[%clk 0:02:41]}  Nba6 {[%clk 0:02:26]} 14. O-O {[%clk 0:02:34]}  O-O-O {[%clk 0:02:25]} 15. Nd2 {[%clk 0:02:28]}  Nd3 {[%clk 0:02:23]} 16. Bg5 {[%clk 0:02:24]}  Rd5 {[%clk 0:02:16]} 17. Nxe4 {[%clk 0:02:18]}  Nxe5 {[%clk 0:02:08]} 18. Bb3 {[%clk 0:02:12]}  Rd7 {[%clk 0:02:00]} 19. Bxe6 {[%clk 0:02:11]}  fxe6 {[%clk 0:02:01]} 20. Rad1 {[%clk 0:02:08]}  Rd5 {[%clk 0:01:58]} 21. Rfe1 {[%clk 0:01:15]}  Nb8 {[%clk 0:01:54]} 22. Nd6+ {[%clk 0:01:08]}  Kc7 {[%clk 0:01:48]} 23. Bf4 {[%clk 0:00:44]}  Ng6 {[%clk 0:01:16]} 24. Nf7+ {[%clk 0:00:30]}  Nxf4 {[%clk 0:01:16]} 25. Nxh8 {[%clk 0:00:30]}  Rf5 {[%clk 0:01:17]} 26. g3 {[%clk 0:00:22]}  Nh3+ {[%clk 0:01:14]} 27. Kg2 {[%clk 0:00:22]}  Nxf2 {[%clk 0:01:15]} 28. Rd4 {[%clk 0:00:11]}  e5 {[%clk 0:01:15]} 29. Rh4 {[%clk 0:00:10]}  Nd3 {[%clk 0:01:09]} 30. Re3 {[%clk 0:00:09]}  Nxb2 {[%clk 0:01:04]} 31. Rxh7 {[%clk 0:00:08]}  Nc4 {[%clk 0:01:02]} 32. Rxg7+ {[%clk 0:00:08]}  Kb6 {[%clk 0:01:02]} 33. Rf3 {[%clk 0:00:08]}  Rh5 {[%clk 0:01:02]} 34. Nf7 {[%clk 0:00:08]}  e4 {[%clk 0:01:00]} 35. Rf4 {[%clk 0:00:07]}  Ne3+ {[%clk 0:01:00]} 36. Kg1 {[%clk 0:00:07]}  Nd5 {[%clk 0:00:57]} 37. Rxe4 {[%clk 0:00:08]}  Nxc3 {[%clk 0:00:58]} 38. Rb4+ {[%clk 0:00:07]}  Ka6 {[%clk 0:00:52]} 39. Rb3 {[%clk 0:00:07]}  Ne2+ {[%clk 0:00:52]} 40. Kg2 {[%clk 0:00:07]}  Nd4 {[%clk 0:00:50]} 41. Ra3+ {[%clk 0:00:08]}  Kb6 {[%clk 0:00:44]} 42. Nd8 {[%clk 0:00:08]}  Nb5 {[%clk 0:00:43]} 43. Rxb7+ {[%clk 0:00:08]}  Kc5 {[%clk 0:00:44]} 44. Raxa7 {[%clk 0:00:06]}  Nxa7 {[%clk 0:00:42]} 45. Rxb8 {[%clk 0:00:07]}  Nb5 {[%clk 0:00:41]} 46. Rc8 {[%clk 0:00:06]}  Nd4 {[%clk 0:00:41]} 47. h4 {[%clk 0:00:06]}  Re5 {[%clk 0:00:41]} 48. g4 {[%clk 0:00:06]}  Re4 {[%clk 0:00:38]} 49. Kg3 {[%clk 0:00:05]}  Re3+ {[%clk 0:00:38]} 50. Kf4 {[%clk 0:00:05]}  Rf3+ {[%clk 0:00:39]} 51. Kg5 {[%clk 0:00:05]}  Rf1 {[%clk 0:00:34]} 52. h5 {[%clk 0:00:05]}  Nf3+ {[%clk 0:00:35]} 53. Kh6 {[%clk 0:00:05]}  Ne5 {[%clk 0:00:32]} 54. g5 {[%clk 0:00:04]}  Kd6 {[%clk 0:00:32]} 55. g6 {[%clk 0:00:04]}  Kd7 {[%clk 0:00:30]} 56. Ra8 {[%clk 0:00:04]}  Rh1 {[%clk 0:00:31]} 57. Nf7 {[%clk 0:00:04]}  Ke6 {[%clk 0:00:29]} 58. Re8+ {[%clk 0:00:02]}  Kf6 {[%clk 0:00:30]} 59. Rxe5 {[%clk 0:00:02]}  c5 {[%clk 0:00:31]} 60. Rxc5 {[%clk 0:00:02]}  Ke7 {[%clk 0:00:31]} 61. Rc6 {[%clk 0:00:03]}  Kf8 {[%clk 0:00:31]} 62. Rc8+ {[%clk 0:00:03]}  Ke7 {[%clk 0:00:31]} 63. g7 {[%clk 0:00:03]}  Re1 {[%clk 0:00:18]} 64. g8=Q {[%clk 0:00:03]}  Re6+ {[%clk 0:00:19]} 65. Qg6 {[%clk 0:00:03]}  Rf6 {[%clk 0:00:19]} 66. Qxf6+ {[%clk 0:00:03]}  Kd7 {[%clk 0:00:19]} 67. Ng5 {[%clk 0:00:04]}  Kxc8 {[%clk 0:00:17]} 68. Kg6 {[%clk 0:00:05]} 1-0


[Site "https://www.chess.com"]